bitfinex/quotes_ETHUSD_20220119
["timestamp","ask_amount","ask_price","bid_price","bid_amount"]
[1642617411444,2.14763685,3129.4,3128.3,0.13291582]
[1642617411643,2.14763685,3129.4,3128.4,0.00454739]
[1642617411644,1.14763685,3129.4,3128.4,0.00454739]
[1642617412648,0.7990131,3129.1,3128.4,0.00454739]
[1642617413686,0.7990131,3129.1,3128.3,0.12441539]
[1642617413887,3.17282932,3129.0,3128.2,2.8735136]
[1642617414090,1.0,3128.9,3128.2,2.5735136]
[1642617414288,3.24510355,3128.8,3128.2,2.5735136]
[1642617414494,3.24737724,3128.8,3128.2,2.5735136]
[1642617414693,0.00170527,3128.7,3128.2,2.5735136]
[1642617414890,0.1278,3128.6,3128.2,2.5735136]
[1642617415095,3.10615954,3128.6,3128.2,2.5735136]
[1642617415493,1.0,3128.5,3128.2,2.5735136]
[1642617415693,0.1278,3128.4,3128.2,2.5735136]
[1642617416093,0.9270377,3128.4,3128.2,2.5735136]
[1642617416497,0.7992377,3128.4,3128.2,2.8735136]
[1642617423509,0.00113685,3128.6,3128.3,2.86020077]
[1642617423710,0.00113685,3128.6,3128.3,2.98800077]
[1642617423910,0.00113685,3128.6,3128.4,0.457]
[1642617424111,0.00113685,3128.6,3128.5,0.1278]
[1642617424370,0.00113685,3128.6,3128.5,3.2278]
[1642617425166,0.00113685,3128.6,3128.5,3.5278]
[1642617425364,0.00113685,3128.6,3128.5,3.8278]
[1642617425965,0.00113685,3128.6,3128.5,6.68014778]
[1642617426166,0.00113685,3128.6,3128.5,3.8278]
[1642617427867,0.00113685,3128.6,3128.5,25.43505101]
[1642617428294,0.00113685,3128.6,3128.5,6.76505101]
[1642617428699,0.00113685,3128.6,3128.5,7.22205101]
[1642617428897,0.00113685,3128.6,3128.5,25.89205101]
[1642617429299,0.00113685,3128.6,3128.5,26.64735101]
[1642617429499,0.00113685,3128.6,3128.5,27.64735101]
[1642617429899,12.6112,3130.6,3128.6,5.78957468]
[1642617430099,5.61406101,3130.5,3129.2,0.79861]
[1642617430303,0.00795792,3130.0,3129.3,19.2548]
[1642617430701,0.0073895,3129.9,3129.3,19.2548]
[1642617431103,0.00682108,3129.8,3129.5,20.86574675]
[1642617431300,0.00682108,3129.8,3129.6,0.457]
[1642617431499,0.00625265,3129.7,3129.6,0.757]
[1642617433246,0.00625265,3129.7,3129.6,3.357]
[1642617434347,0.00625265,3129.7,3129.6,5.707]
[1642617434849,0.00625265,3129.7,3129.6,3.357]
[1642617436997,0.00625265,3129.7,3129.6,22.027]
[1642617438298,0.00625265,3129.7,3129.6,22.1548]
[1642617439345,0.00625265,3129.7,3129.6,3.4848]
[1642617440251,0.00625265,3129.7,3129.6,6.6348]
[1642617442456,0.00625265,3129.7,3129.6,25.3048]
[1642617443706,0.00625265,3129.7,3129.6,26.3048]
[1642617445609,0.00625265,3129.7,3129.6,7.6348]
[1642617445812,0.00625265,3129.7,3129.6,26.3048]
[1642617446010,0.00625265,3129.7,3129.6,7.6348]
[1642617446210,0.00625265,3129.7,3129.6,3.4848]
[1642617446410,0.00625265,3129.7,3129.6,3.357]
[1642617447755,0.00625265,3129.7,3129.6,3.057]
[1642617447957,0.00625265,3129.7,3129.6,3.357]
[1642617448158,0.00625265,3129.7,3129.6,3.057]
[1642617449160,0.00625265,3129.7,3129.6,6.207]
[1642617449760,0.00625265,3129.7,3129.6,3.057]
[1642617449962,0.00625265,3129.7,3129.6,3.657]
[1642617452421,0.02707512,3129.7,3129.6,3.657]
[1642617453226,0.02707512,3129.7,3129.6,1.057]
[1642617453426,0.02707512,3129.7,3129.6,0.457]
[1642617453631,0.02707512,3129.7,3129.1,1.5861]
[1642617453826,0.02707512,3129.7,3129.1,1.057]
[1642617454026,0.00568423,3129.6,3129.1,1.057]
[1642617454455,0.02082247,3129.7,3129.1,1.057]
[1642617454456,0.00511581,3129.5,3129.1,1.057]
[1642617454659,0.00511581,3129.5,3129.1,0.457]
[1642617454856,0.00454738,3129.4,3129.1,0.457]
[1642617455259,0.00397896,3129.3,3129.1,0.457]
[1642617455661,0.00341054,3129.2,3129.1,0.457]
[1642617455861,0.00341054,3129.2,3129.1,0.757]
[1642617456063,0.00341054,3129.2,3129.1,5.257]
[1642617457162,0.02411125,3129.2,3129.1,5.257]
[1642617461708,0.02411125,3129.2,3129.1,4.957]
[1642617461974,0.02411125,3129.2,3129.1,5.257]
[1642617462975,0.02411125,3129.2,3129.1,23.927]
[1642617463380,0.02411125,3129.2,3129.1,24.85349]
[1642617463579,0.02411125,3129.2,3129.1,5.3848]
[1642617463782,0.02411125,3129.2,3129.1,5.6848]
[1642617464183,0.02411125,3129.2,3129.1,5.557]
[1642617464380,0.02411125,3129.2,3129.1,0.757]
[1642617464581,0.02411125,3129.2,3129.0,0.3]
[1642617464781,0.02411125,3129.2,3129.1,3.5]
[1642617464981,0.02070071,3129.2,3129.1,3.8]
[1642617467009,0.02070071,3129.2,3129.1,4.1]
[1642617467407,0.81954281,3129.4,3129.1,4.1]
[1642617467608,0.81954281,3129.4,3129.2,0.3]
[1642617467809,0.00397896,3129.3,3129.2,0.3]
[1642617469351,0.00397896,3129.3,3129.1,3.5]
[1642617469556,0.00397896,3129.3,3129.2,0.3]
[1642617469753,0.81954281,3129.4,3129.1,3.5]
[1642617470153,0.00341054,3129.2,3129.1,3.5]
[1642617471554,0.00341054,3129.2,3129.1,4.1]
[1642617472154,0.02411125,3129.2,3129.1,4.1]
[1642617472755,0.02411125,3129.2,3129.1,3.8]
[1642617473611,0.02411125,3129.2,3129.1,3.5]
[1642617474813,0.02411125,3129.2,3129.1,3.8]
[1642617476016,0.02411125,3129.2,3129.1,3.5]
[1642617476852,0.02411125,3129.2,3128.5,3.5]
[1642617477053,0.7989536,3129.0,3128.5,3.5]
[1642617477258,0.7989536,3129.0,3128.6,0.3]
[1642617477456,0.00170527,3128.9,3128.6,0.3]
[1642617477859,0.00113684,3128.8,3128.7,3.5]
[1642617478458,0.00113684,3128.8,3128.7,3.8]
[1642617478659,0.00113684,3128.8,3128.7,4.1]
[1642617480162,0.00113684,3128.8,3128.7,3.8]
[1642617482312,0.02174012,3128.8,3128.7,3.8]
[1642617483914,0.02174012,3128.8,3128.7,3.5]
[1642617484370,0.02174012,3128.8,3128.3,0.1278]
[1642617484570,0.01288982,3128.7,3128.3,0.1278]
[1642617484772,0.01288982,3128.7,3128.4,0.00113685]
[1642617484974,1.01288982,3128.7,3128.4,0.00113685]
[1642617485171,1.01288982,3128.7,3128.2,2.7013836]
[1642617485172,2.72040461,3128.6,3128.3,0.00170528]
[1642617485372,2.72040461,3128.6,3128.2,2.7013836]
[1642617485373,0.79933,3128.2,3127.3,0.03]
[1642617485572,5.10843,3128.2,3127.3,0.03]
[1642617485773,6.9077343,3128.2,3127.4,0.00511581]
[1642617486472,6.50826706,3128.1,3127.4,0.00511581]
[1642617486672,4.1,3127.9,3127.1,0.01511581]
[1642617486973,0.1300737,3127.8,3127.2,0.12893684]
[1642617487377,0.00170527,3127.7,3127.2,18.79893684]
[1642617487577,0.00170527,3127.7,3127.2,0.12893684]
[1642617487773,0.1278,3127.8,3127.2,18.79893684]
[1642617487774,0.00113685,3127.6,3127.2,18.79893684]
[1642617487974,0.00113685,3127.6,3127.4,1.53120932]
[1642617488203,0.00170527,3127.7,3127.4,2.13120932]
[1642617488604,0.00113685,3127.6,3127.4,2.93033932]
[1642617489003,0.00170527,3127.7,3127.4,2.93033932]
[1642617489408,0.00113685,3127.6,3127.5,5.157]
[1642617491310,0.00113685,3127.6,3127.5,23.827]
[1642617491714,0.00113685,3127.6,3127.5,23.9548]
[1642617492369,0.02144768,3127.6,3127.5,23.9548]
[1642617493073,0.02144768,3127.6,3127.5,24.9548]
[1642617493275,4.768e-05,3127.6,3127.5,27.9548]
[1642617493475,0.0124161,3129.6,3127.7,0.10194807]
[1642617493476,3.833,3129.0,3127.7,0.10194807]
[1642617493676,8.4323,3129.3,3128.5,1.20411532]
[1642617493874,0.00795793,3129.0,3128.6,0.457]
[1642617494275,0.00738951,3128.9,3128.6,0.457]
[1642617494475,0.00738951,3128.9,3128.6,0.757]
[1642617494675,7.2607,3129.3,3128.6,0.457]
[1642617494676,0.00682108,3128.8,3128.6,0.457]
[1642617495175,0.00625266,3128.7,3128.6,0.457]
[1642617495611,0.00625266,3128.7,3128.6,9.11526071]
[1642617495911,12.7034,3130.1,3128.7,5.75]
[1642617496111,2.71965064,3130.0,3128.8,23.05459382]
[1642617496310,0.00682108,3129.9,3128.9,0.1278]
[1642617496511,0.00682108,3129.9,3129.0,0.457]
[1642617496708,0.00625266,3129.8,3129.1,0.1278]
[1642617496908,0.00625266,3129.8,3129.2,0.457]
[1642617497108,12.7034,3130.1,3129.2,0.457]
[1642617497109,0.00568423,3129.7,3129.3,0.457]
[1642617497511,11.4543,3130.1,3129.3,0.757]
[1642617497512,0.00511581,3129.6,3129.3,0.757]
[1642617497714,0.00511581,3129.6,3129.3,1.057]
[1642617497916,7.5379,3130.1,3129.3,1.057]
[1642617497917,0.00454739,3129.5,3129.3,0.757]
[1642617498322,0.00397896,3129.4,3129.3,1.057]
[1642617498714,0.00397896,3129.4,3129.3,0.6]
[1642617498914,0.00397896,3129.4,3129.0,0.7278]
[1642617499115,0.00397896,3129.4,3129.0,0.1278]
[1642617499356,0.00341054,3129.3,3129.0,0.4278]
[1642617499760,0.00284212,3129.2,3129.0,0.4278]
[1642617499961,0.00284212,3129.2,3129.0,0.3]
[1642617500162,0.00227369,3129.1,3129.0,0.3]
[1642617503138,0.00227369,3129.1,3129.0,6.6348]
[1642617503334,0.00227369,3129.1,3129.0,25.58465203]
[1642617503534,0.00227369,3129.1,3129.0,26.8488]
[1642617504734,0.00227369,3129.1,3129.0,26.976621]
[1642617504936,0.00227369,3129.1,3129.0,26.8488]
[1642617505137,0.00227369,3129.1,3129.0,25.8488]
[1642617505338,0.00227369,3129.1,3129.0,25.721]
[1642617505538,0.00227369,3129.1,3129.0,26.721]
[1642617505743,0.00227369,3129.1,3129.0,26.8488]
[1642617506954,2.71940856,3130.5,3130.1,1.11686393]
[1642617507258,2.71940856,3130.5,3130.1,2.05866393]
[1642617507453,0.00738951,3130.4,3130.1,3.11566393]
[1642617507857,0.00682108,3130.3,3130.1,3.11566393]
[1642617508261,0.00625266,3130.2,3130.1,1.9988]
[1642617510705,0.00625266,3130.2,3130.1,1.057]
[1642617510907,0.00625266,3130.2,3130.1,0.757]
[1642617511104,0.00625266,3130.2,3130.1,1.057]
[1642617512308,0.00625266,3130.2,3130.1,4.057]
[1642617512508,0.00625266,3130.2,3130.1,1.057]
[1642617513412,0.00625266,3130.2,3130.1,0.757]
[1642617513610,0.00625266,3130.2,3130.1,0.457]
[1642617514955,0.00625266,3130.2,3130.1,3.957]
[1642617515155,0.00625266,3130.2,3130.1,0.457]
[1642617516157,0.00625266,3130.2,3130.1,0.757]
[1642617516359,0.00625266,3130.2,3130.1,22.777]
[1642617516657,0.00625266,3130.2,3130.1,23.9047]
[1642617517358,0.00625266,3130.2,3130.1,5.2347]
[1642617517759,0.00625266,3130.2,3130.1,1.1847]
[1642617518202,0.00625266,3130.2,3130.1,0.757]
[1642617518803,0.00625266,3130.2,3129.5,0.1277]
[1642617519002,0.00625266,3130.2,3129.4,3.59047365]
[1642617519203,0.00568424,3130.1,3129.6,0.79861]
[1642617519409,0.00568424,3130.1,3129.7,18.67]
[1642617519608,0.00511581,3130.0,3129.9,4.84391075]
[1642617519807,0.00511581,3130.0,3129.9,3.4]
[1642617520208,0.00511581,3130.0,3129.9,4.79851]
[1642617520408,0.00511581,3130.0,3129.9,1.39851]
[1642617521008,0.00511581,3130.0,3129.9,0.6]
[1642617521408,0.00511581,3130.0,3129.9,0.3]
[1642617521866,0.00511581,3130.0,3129.8,0.6]
[1642617522056,0.00511581,3130.0,3129.8,18.97]
[1642617522359,0.00454739,3129.9,3129.8,18.97]
[1642617522956,0.00454739,3129.9,3129.8,19.427]
[1642617523357,0.00454739,3129.9,3129.8,20.57007971]
[1642617523560,0.00454739,3129.9,3129.8,21.57007971]
[1642617523962,3.8849,3131.3,3129.9,5.75]
[1642617524163,2.71872559,3131.2,3131.0,0.03161905]
[1642617524364,2.71872559,3131.2,3130.7,0.457]
[1642617524365,0.00682108,3131.1,3130.7,0.457]
[1642617524664,0.00625266,3131.0,3130.9,1.13534231]
[1642617525063,3.5942,3131.6,3130.9,1.13534231]
[1642617525064,3.55045266,3131.6,3130.9,0.6]
[1642617525262,2.7186128,3131.5,3130.9,0.6]
[1642617525462,2.7186128,3131.5,3130.7,1.057]
[1642617525463,2.72145492,3131.5,3130.7,1.057]
[1642617525909,2.72145492,3131.5,3130.8,0.00113685]
[1642617526509,0.7984911,3131.4,3130.8,0.00113685]
[1642617526711,2.7186128,3131.3,3130.8,0.00113685]
[1642617526912,2.72031807,3131.3,3130.8,0.00113685]
[1642617527112,0.00113685,3131.2,3130.8,0.00113685]
[1642617527313,2.66974965,3131.3,3130.8,0.00113685]
[1642617527612,2.66974965,3131.3,3130.8,0.0022737]
[1642617529961,2.66974965,3131.3,3130.8,3.5022737]
[1642617530161,2.66974965,3131.3,3130.8,0.0022737]
[1642617530366,2.66974965,3131.3,3130.7,0.757]
[1642617530367,2.66974965,3131.3,3130.9,0.00170528]
[1642617530561,2.66974965,3131.3,3130.8,0.0022737]
[1642617531562,3.55045266,3131.6,3130.8,0.0022737]
[1642617531964,0.00170527,3131.5,3130.8,0.0022737]
[1642617532364,3.55045266,3131.6,3130.8,0.0022737]
[1642617532365,0.00113684,3131.4,3130.8,0.0022737]
[1642617533413,0.00113684,3131.4,3130.8,2.95098604]
[1642617533610,0.00113684,3131.4,3130.8,0.1299737]
[1642617533813,0.00113684,3131.4,3130.9,0.00170528]
[1642617538974,3.5015895,3131.6,3130.9,0.00170528]
[1642617539179,2.7,3131.5,3130.8,0.07940528]
[1642617539375,0.00227371,3131.5,3130.9,0.00113684]
[1642617540279,0.00227371,3131.5,3130.9,2.86891957]
[1642617540708,0.00227371,3131.5,3131.2,1.33539874]
[1642617540914,0.00227371,3131.5,3131.3,21.70048123]
[1642617541110,0.00227371,3131.5,3131.4,8.05396483]
[1642617541308,0.00227371,3131.5,3131.4,26.72396483]
[1642617542419,0.00227371,3131.5,3131.4,26.76093302]
[1642617542714,3.29623705,3133.0,3131.8,0.79786]
[1642617542715,1.0,3133.0,3131.8,0.79786]
[1642617542911,1.0,3133.0,3131.9,19.2545]
[1642617543111,0.00682108,3132.7,3131.9,19.2545]
[1642617543314,0.00682108,3132.7,3132.5,1.1213331]
[1642617543513,1.0,3133.0,3132.6,3.11407875]
[1642617543711,1.0,3133.0,3132.6,3.47289999]
[1642617543913,0.00795792,3132.9,3132.6,0.6]
[1642617544112,0.00795792,3132.9,3132.6,0.3]
[1642617544367,0.0073895,3132.8,3132.7,2.93379131]
[1642617544568,0.0073895,3132.8,3132.7,4.99079131]
[1642617544767,0.0073895,3132.8,3132.7,3.99079131]
[1642617544970,0.0073895,3132.8,3132.7,1.057]
[1642617545370,0.0073895,3132.8,3132.7,6.027486]
[1642617545569,0.0073895,3132.8,3132.7,24.936086]
[1642617545768,0.0073895,3132.8,3132.7,25.936086]
[1642617547169,0.0073895,3132.8,3132.7,24.64724771]
[1642617547369,0.0073895,3132.8,3132.7,5.97724771]
[1642617547570,0.0073895,3132.8,3132.7,4.97724771]
[1642617547771,0.0073895,3132.8,3132.2,1.21774355]
[1642617547772,0.0073895,3132.8,3132.3,0.457]
[1642617547970,0.0073895,3132.8,3132.3,3.957]
[1642617547971,2.71759436,3132.7,3132.3,3.957]
[1642617548252,2.72441544,3132.7,3132.3,3.957]
[1642617548438,2.72384701,3132.6,3132.3,0.457]
[1642617548640,0.00625265,3132.6,3132.3,0.457]
[1642617548843,0.00568423,3132.5,3132.3,0.757]
[1642617549243,1.0,3133.0,3132.3,0.757]
[1642617549244,0.00511581,3132.4,3132.3,0.457]
[1642617550445,0.00511581,3132.4,3132.3,0.757]
[1642617550648,0.00511581,3132.4,3132.3,1.057]
[1642617553060,0.00511581,3132.4,3132.3,0.6]
[1642617553262,0.00511581,3132.4,3132.3,0.3]
[1642617553462,0.00511581,3132.4,3131.7,0.487]
[1642617553662,0.00511581,3132.4,3131.7,0.787]
[1642617553863,0.01236522,3132.8,3132.3,5.0]
[1642617554063,2.71772486,3132.7,3132.3,5.3]
[1642617554264,2.72454594,3132.7,3132.3,5.3]
[1642617554474,2.72454594,3132.7,3132.3,5.0]
[1642617554475,6.81234136,3132.6,3132.3,5.0]
[1642617554675,2.71772486,3132.5,3132.3,5.0]
[1642617554876,5.8775,3132.4,3132.3,5.0]
[1642617555073,9.60034067,3132.4,3132.3,5.0]
[1642617555273,9.60034067,3132.4,3132.3,0.65110135]
[1642617556631,12.68176553,3132.4,3132.3,0.65110135]
[1642617558135,11.68176553,3132.4,3132.3,0.65110135]
[1642617558536,8.60034067,3132.4,3132.3,0.65110135]
[1642617559136,11.6401833,3132.4,3132.3,0.65110135]
[1642617559574,12.6401833,3132.4,3132.3,0.65110135]
[1642617561377,12.6401833,3132.4,3132.3,1.35e-06]
[1642617561378,12.65315647,3132.4,3132.3,1.35e-06]
[1642617561578,12.65315647,3132.4,3131.2,0.1275]
[1642617561579,18.92100144,3132.4,3131.2,0.1275]
[1642617561778,0.79852,3132.1,3130.9,0.00113684]
[1642617561977,0.79852,3132.1,3131.3,0.00113684]
[1642617561978,0.01275941,3131.5,3131.3,0.00113684]
[1642617562177,2.71772486,3131.4,3130.8,0.00397897]
[1642617562377,3.68055489,3131.3,3130.8,0.00397897]
[1642617562576,3.71772486,3131.2,3130.8,0.00397897]
[1642617562781,3.10907676,3131.1,3130.8,0.00397897]
[1642617563108,1.7985862,3131.2,3130.8,0.00397897]
[1642617563309,2.71875313,3131.1,3130.8,0.00397897]
[1642617563511,5.81448019,3131.1,3130.8,0.00397897]
[1642617563709,0.7985862,3131.2,3130.8,0.00397897]
[1642617564112,3.00816173,3131.1,3130.4,0.00625266]
[1642617564312,1.7985862,3131.2,3130.4,0.00625266]
[1642617564512,2.71877163,3131.1,3130.4,0.3]
[1642617564712,2.71877163,3131.1,3130.4,0.30625266]
[1642617564916,1.7985862,3131.2,3130.5,0.00568424]
[1642617565315,2.71875998,3131.1,3130.5,0.00568424]
[1642617565512,1.7985862,3131.2,3130.3,0.00682109]
[1642617565712,1.7985862,3131.2,3130.3,1.41848225]
[1642617565913,1.7985862,3131.2,3130.3,1.71848225]
[1642617566116,2.71874061,3131.1,3130.4,0.00625266]
[1642617566314,5.74461281,3131.1,3130.4,0.00625266]
[1642617566514,3.0258722,3131.1,3130.4,0.00625266]
[1642617566979,1.7985862,3131.2,3130.4,0.00625266]
[1642617567185,2.71873652,3131.1,3130.4,0.00625266]
[1642617567884,5.7135862,3131.2,3130.2,1.54502482]
[1642617568082,5.7135862,3131.2,3130.3,0.1277]
[1642617568282,5.7135862,3131.2,3130.3,0.13452109]
[1642617568481,5.7135862,3131.2,3130.4,0.00625266]
[1642617569683,3.915,3131.2,3130.4,0.00625266]
[1642617570817,3.915,3131.2,3130.4,0.80463266]
[1642617571118,3.6783,3131.4,3130.5,0.00568424]
[1642617571324,2.71859622,3131.3,3130.6,0.1277]
[1642617571519,3.6783,3131.4,3130.6,0.1277]
[1642617571719,3.6783,3131.4,3130.7,0.00454739]
[1642617571919,3.6783,3131.4,3131.1,1.20509481]
[1642617572121,1.2302,3131.7,3131.1,1.20509481]
[1642617572321,0.00284211,3132.0,3131.2,1.48552052]
[1642617572522,2.72096403,3132.0,3131.2,1.61322052]
[1642617572722,0.00227369,3131.9,3131.3,0.00113685]
[1642617573121,0.00170527,3131.8,3131.3,0.00113685]
[1642617573321,0.00170527,3131.8,3131.3,0.12883685]
[1642617573522,0.00113684,3131.7,3131.3,0.12883685]
[1642617573722,0.00113684,3131.7,3131.3,0.00113685]
[1642617573922,2.72087875,3132.0,3131.3,0.00113685]
[1642617574377,0.00227369,3131.9,3131.3,0.00113685]
[1642617574769,0.00170527,3131.8,3131.2,0.00170527]
[1642617575167,0.00113684,3131.7,3131.2,0.00170527]
[1642617575576,2.71803664,3132.0,3131.2,1.55419134]
[1642617575577,0.00227369,3131.9,3131.2,1.55419134]
[1642617575768,0.00227369,3131.9,3131.3,0.457]
[1642617575969,0.00170527,3131.8,3131.3,0.45813685]
[1642617576370,0.00113684,3131.7,3131.3,0.75813685]
[1642617576571,0.00113684,3131.7,3131.3,1.05813685]
[1642617576871,2.71787323,3132.5,3131.3,1.05813685]
[1642617576872,0.0127272,3132.0,3131.3,1.05813685]
[1642617577076,2.71787323,3131.9,3131.3,1.05813685]
[1642617577271,2.72014692,3131.9,3131.3,0.60113685]
[1642617577472,0.00170527,3131.8,3131.3,0.60113685]
[1642617577675,0.00170527,3131.8,3131.3,0.30113685]
[1642617577873,2.7180754,3132.3,3131.3,0.00113685]
[1642617577874,0.00113684,3131.7,3131.3,0.00113685]
[1642617578415,2.7180754,3132.1,3131.2,0.00170527]
[1642617578617,1.0,3132.0,3131.2,0.00170527]
[1642617578819,3.5165554,3131.9,3131.2,0.30170527]
[1642617579018,3.5165484,3131.8,3131.2,0.30170527]
[1642617579218,2.7180754,3131.7,3131.3,0.00113685]
[1642617579419,5.713533,3131.7,3131.3,0.00113685]
[1642617579621,2.7180754,3131.6,3131.3,0.00113685]
[1642617579821,2.7180754,3131.6,3130.8,0.00397897]
[1642617580022,2.96044097,3131.5,3130.8,0.00397897]
[1642617580421,2.96044097,3131.5,3130.5,0.00568424]
[1642617580630,2.96044097,3131.5,3130.6,0.1277]
[1642617581023,2.96044097,3131.5,3130.7,0.00454739]
[1642617581427,2.7184921,3131.4,3130.7,0.00454739]
[1642617581623,2.7184921,3131.4,3130.6,0.00511582]
[1642617582062,2.7184921,3131.4,3130.5,0.00568424]
[1642617582263,2.7184921,3131.4,3130.3,2.58050243]
[1642617582463,2.7184921,3131.4,3130.3,3.50662243]
[1642617582664,4.114,3131.6,3130.4,0.00625266]
[1642617582665,3.9863,3131.6,3130.4,0.00625266]
[1642617582866,3.9863,3131.6,3130.5,0.5847]
[1642617583065,3.9863,3131.6,3130.5,0.8847]
[1642617583268,3.9863,3131.6,3130.6,0.00511582]
[1642617583465,7.52273684,3131.7,3130.7,1.38302]
[1642617583865,7.52273684,3131.7,3130.8,0.00397897]
[1642617584470,3.96073684,3131.7,3130.8,0.00397897]
[1642617584669,3.96073684,3131.7,3130.8,0.80218897]
[1642617584875,0.00113684,3131.7,3130.8,1.80218897]
[1642617585071,0.00113684,3131.7,3131.4,1.20168236]
[1642617585271,0.00113684,3131.7,3131.5,0.3]
[1642617586118,0.00113684,3131.7,3131.5,0.79362739]
[1642617586319,0.00113684,3131.7,3131.6,4.72579]
[1642617586520,0.00113684,3131.7,3131.6,5.48279]
[1642617586925,0.00113684,3131.7,3131.6,0.8847]
[1642617587326,0.00113684,3131.7,3131.6,0.757]
[1642617588534,2.40113684,3131.7,3131.6,0.3]
[1642617588730,2.40113684,3131.7,3131.0,0.1277]
[1642617588930,2.7181256,3131.6,3131.0,0.3]
[1642617589130,2.7181256,3131.6,3131.1,0.0022737]
[1642617589572,2.7181256,3131.6,3130.6,0.13281582]
[1642617589772,2.7181256,3131.6,3130.7,0.00454739]
[1642617590173,2.7181256,3131.6,3130.6,0.00511582]
[1642617592178,2.7181256,3131.6,3130.5,0.00568424]
[1642617592379,2.7181256,3131.6,3130.6,0.1277]
[1642617592579,2.7181256,3131.6,3130.5,0.13338424]
[1642617592779,2.7181256,3131.6,3130.7,0.00454739]
[1642617592980,2.7181256,3131.6,3130.6,0.00511582]
[1642617593219,1.0,3131.5,3130.6,0.00511582]
[1642617593421,5.87681705,3131.4,3130.6,0.00511582]
[1642617593625,2.7181256,3131.3,3130.6,0.00511582]
[1642617594022,3.7181256,3131.2,3130.6,0.00511582]
[1642617594228,2.7181256,3131.1,3130.4,0.00625266]
[1642617594625,4.0689,3131.3,3130.4,0.00625266]
[1642617594626,3.9412,3131.3,3130.4,0.00625266]
[1642617594827,2.71847312,3131.2,3130.4,0.00625266]
[1642617595326,3.9412,3131.3,3130.4,0.00625266]
[1642617595525,3.9412,3131.3,3130.4,0.13395266]
[1642617595925,3.9412,3131.3,3130.5,0.00568424]
[1642617596525,2.71835129,3131.2,3130.5,0.00568424]
[1642617596724,3.9412,3131.3,3130.5,0.00568424]
[1642617598974,3.9412,3131.3,3130.6,0.1277]
[1642617599175,3.9412,3131.3,3130.5,0.00568424]
[1642617599374,3.9412,3131.3,3130.7,0.00454739]
[1642617599574,3.9412,3131.3,3130.3,0.00682109]
[1642617599774,3.9412,3131.3,3130.4,0.1277]
[1642617600174,3.9412,3131.3,3130.5,0.00568424]
[1642617600820,3.9412,3131.3,3130.3,1.60358109]
[1642617601020,3.9412,3131.3,3130.4,0.4277]
[1642617601219,2.71831142,3131.2,3130.4,0.43395266]
[1642617601424,2.71831142,3131.2,3130.5,0.00568424]
[1642617601820,3.9412,3131.3,3130.5,0.00568424]
[1642617602520,3.9412,3131.3,3130.7,1.7639824]
[1642617602921,3.9412,3131.3,3130.8,0.00397897]
[1642617605373,2.72472562,3131.2,3130.8,0.00397897]
[1642617605573,2.7182307,3131.1,3130.8,0.00397897]
[1642617605772,4.7397328,3131.3,3130.8,0.00397897]
[1642617605773,2.7182307,3131.0,3130.8,0.00397897]
[1642617605974,4.7397328,3131.3,3130.6,0.00511582]
[1642617606172,2.71840826,3131.2,3130.6,0.00511582]
[1642617606577,2.71840826,3131.2,3130.2,0.00738951]
[1642617606773,0.7986223,3131.0,3130.2,0.00738951]
[1642617607376,2.71853315,3130.9,3130.2,0.00738951]
[1642617608317,5.72213717,3130.9,3130.2,0.00738951]
[1642617608519,2.71853315,3130.8,3130.2,0.00738951]
[1642617608822,3.51718175,3130.8,3130.2,0.00738951]
[1642617609022,3.8201,3131.1,3130.2,0.00738951]
[1642617609226,2.71850434,3131.0,3130.0,0.00852636]
[1642617609424,2.71850434,3131.0,3129.9,0.00909478]
[1642617610127,3.51709054,3131.0,3129.9,0.00909478]
[1642617610323,2.71850434,3130.9,3129.9,0.00909478]
[1642617611124,4.19598225,3130.8,3129.9,0.00909478]
[1642617611330,2.71850434,3130.7,3129.9,0.00909478]
[1642617611729,2.98677264,3130.6,3129.8,0.0096632]
[1642617611979,2.71850434,3130.5,3129.8,0.0096632]
[1642617612175,2.98677264,3130.6,3129.8,0.0096632]
[1642617612176,1.0,3130.8,3129.8,0.0096632]
[1642617612375,2.71897209,3130.7,3129.8,0.0096632]
[1642617612574,2.71897209,3130.7,3129.5,0.1277]
[1642617612575,1.0,3130.6,3129.6,0.01080005]
[1642617612774,2.71897209,3130.5,3129.6,0.01080005]
[1642617613574,3.51772859,3130.5,3129.6,0.01080005]
[1642617613775,0.7987565,3130.5,3129.6,0.01080005]
[1642617614175,3.80067649,3130.5,3129.6,0.01080005]
[1642617614378,3.02338464,3130.4,3129.6,0.01080005]
[1642617614574,3.03234211,3130.4,3129.5,0.01136847]
[1642617614774,3.03234211,3130.4,3129.4,0.0119369]
[1642617614974,3.03234211,3130.4,3129.5,0.1277]
[1642617615378,3.0106814,3130.4,3129.6,0.01080005]
[1642617615642,0.7987565,3130.5,3129.6,0.01080005]
[1642617615827,3.10346906,3130.4,3129.6,0.01080005]
[1642617616029,0.7988236,3130.2,3129.4,0.0119369]
[1642617616230,3.49169445,3130.1,3129.4,0.0119369]
[1642617616428,0.1278,3130.0,3129.0,0.01421059]
[1642617616630,1.1278,3130.0,3129.0,0.01421059]
[1642617616831,1.1278,3130.0,3128.9,0.01477901]
[1642617616832,3.191681,3129.9,3128.9,0.01477901]
[1642617617033,1.0,3129.8,3128.9,0.01477901]
[1642617617231,0.798956,3129.7,3128.9,0.01477901]
[1642617619366,0.798956,3129.7,3128.6,0.01648428]
[1642617619574,1.798956,3129.7,3128.6,0.01648428]
[1642617619771,3.01963909,3129.6,3128.6,0.01648428]
[1642617620173,0.7990252,3129.5,3128.6,0.01648428]
[1642617620572,1.0,3129.7,3128.6,0.01648428]
[1642617621575,1.7989623,3129.7,3128.6,0.01648428]
[1642617625524,1.7989623,3129.7,3128.6,0.14428428]
[1642617625823,1.7989623,3129.7,3128.7,0.01591586]
[1642617627275,1.0,3129.7,3128.7,0.01591586]
[1642617628471,1.7989563,3129.7,3128.7,0.01591586]
[1642617629782,3.08046227,3129.6,3128.7,0.01591586]
[1642617629979,3.08046227,3129.6,3128.5,0.4278]
[1642617629980,1.0,3129.5,3128.6,0.01648428]
[1642617630182,0.79919,3129.3,3128.6,0.01648428]
[1642617630384,0.1278,3129.2,3128.6,0.01648428]
[1642617630633,0.1278,3129.2,3127.9,7.4478]
[1642617630634,0.1278,3129.2,3128.1,0.0193264]
[1642617630824,0.1278,3129.2,3128.0,0.01989483]
[1642617631023,3.7158,3129.2,3128.0,0.01989483]